[Event "44th Chess Olympiad Women 2022"]
[Site "Chennai"]
[Date "2022.07.31"]
[Round "3.19"]
[White "Penafiel Mendoza, Josselyne"]
[Black "Lahav, Michal"]
[Result "0-1"]
[WhiteElo "1804"]
[BlackElo "2191"]
[Annotator "ChessBase"]
[PlyCount "64"]
[EventDate "2022.??.??"]
[TimeControl "60"]

1. d4 {[%emt 0:00:06]} d5 {[%emt 0:00:12]} 2. c4 {[%emt 0:00:07]} c6 {[%emt 0:
00:00]} 3. cxd5 {[%emt 0:00:28]} cxd5 {[%emt 0:00:10]} 4. Nc3 {[%emt 0:00:17]}
Nf6 {[%emt 0:00:24]} 5. Bf4 {[%emt 0:00:17]} Nc6 {[%emt 0:00:15]} 6. e3 {
[%emt 0:00:34]} a6 {[%emt 0:00:19]} 7. Bd3 {[%emt 0:00:26]} Bg4 {[%emt 0:00:20]
} 8. Nge2 {[%emt 0:00:11]} e6 {[%emt 0:00:20]} 9. f3 {[%emt 0:00:38]} Bh5 {
[%emt 0:00:19]} 10. O-O {[%emt 0:00:59]} Be7 {[%emt 0:04:20]} 11. Rc1 {[%emt 0:
00:00]} O-O {[%emt 0:04:42]} 12. Na4 {[%emt 0:02:15]} Nd7 {[%emt 0:03:08]} 13.
Qb3 {[%emt 0:06:40]} Nb4 {[%emt 0:18:08]} 14. Bb1 {[%emt 0:02:08]} b5 {[%emt 0:
00:00]} 15. Nc5 {[%emt 0:13:19]} Nxc5 {[%emt 0:10:01]} 16. dxc5 {[%emt 0:00:07]
} Nc6 {[%emt 0:00:09]} 17. Rfd1 {[%emt 0:02:12]} Rc8 {[%emt 0:01:37]} 18. Qa3 {
[%emt 0:25:45]} a5 {[%emt 0:07:17]} 19. Nd4 {[%emt 0:00:47]} Nb4 {[%emt 0:00:
00]} 20. Bd6 {[%emt 0:05:05]} Bxd6 {[%emt 0:25:59]} 21. cxd6 {[%emt 0:00:30]}
Qb6 {[%emt 0:00:01]} 22. Rc3 {[%emt 0:05:32]} Rc4 {[%emt 0:08:16]} 23. Rdc1 {
[%emt 0:01:20]} Rd8 {[%emt 0:02:11]} 24. b3 {[%emt 0:01:02]} Rxc3 {[%emt 0:00:
00]} 25. Rxc3 {[%emt 0:00:02]} Bg6 {[%emt 0:00:01]} 26. Qc1 {[%emt 0:12:15]}
Bxb1 {[%emt 0:05:07]} 27. d7 {[%emt 0:05:52]} Nxa2 {[%emt 0:02:24]} 28. Rc6 {
[%emt 0:00:01]} Qb7 {[%emt 0:01:02]} 29. Rc7 {[%emt 0:00:43]} Qb8 {[%emt 0:00:
00]} 30. Rc8 {[%emt 0:00:13]} Nxc1 {[%emt 0:00:25]} 31. Rxb8 {[%emt 0:02:17]}
Rxb8 {[%emt 0:00:01]} 32. Nc6 {[%emt 0:00:02]} Rf8 {[%emt 0:00:06]} 0-1

[Event "44th Chess Olympiad Women 2022"]
[Site "Chennai"]
[Date "2022.07.31"]
[Round "3.20"]
[White "Bulmaga, Irina"]
[Black "Zairbek kyzy, Begimai"]
[Result "0-1"]
[WhiteElo "2394"]
[BlackElo "1949"]
[Annotator "RC"]
[PlyCount "126"]
[EventDate "2022.??.??"]
[TimeControl "60"]

1. e4 {[%emt 0:00:04]} c6 {[%emt 0:00:04]} 2. Nc3 {[%emt 0:00:07]} d5 {[%emt 0:
00:00]} 3. Nf3 {[%emt 0:00:09]} Bg4 {[%emt 0:00:09]} 4. Be2 {[%emt 0:00:09]} e6
{[%emt 0:00:14]} 5. h3 {[%emt 0:00:14]} Bxf3 {[%emt 0:00:37]} 6. Bxf3 {[%emt 0:
00:00]} Nf6 {[%emt 0:00:12]} 7. e5 {[%emt 0:00:27]} Nfd7 {[%emt 0:00:06]} 8. d4
{[%emt 0:00:17]} c5 {[%emt 0:01:25]} 9. O-O {[%emt 0:25:11]} cxd4 {[%emt 0:00:
00]} 10. Nb5 {[%emt 0:17:05]} Nc6 {[%emt 0:05:02]} 11. Nxd4 {[%emt 0:02:24]}
Ndxe5 {[%emt 0:04:25]} 12. Be2 {[%emt 0:00:27]} Bc5 {[%emt 0:02:43]} 13. Be3 {
[%emt 0:05:11]} Qb6 {[%emt 0:07:07]} 14. c3 {[%emt 0:01:57]} a5 {[%emt 0:05:27]
} 15. b3 {[%emt 0:06:06]} O-O {[%emt 0:05:08]} 16. a3 {[%emt 0:02:16]} Ng6 {
[%emt 0:17:22]} 17. b4 {[%emt 0:06:35]} axb4 {[%emt 0:06:49]} 18. axb4 {
[%emt 0:00:09]} Bxd4 {[%emt 0:04:06]} 19. cxd4 {[%emt 0:01:26]} Qxb4 {[%emt 0:
00:00]} 20. Rb1 {[%emt 0:01:03]} Qe7 {[%emt 0:00:29]} 21. Rb5 {[%emt 0:01:24]}
Rfc8 {[%emt 0:02:57]} 22. Qd2 {[%emt 0:03:23]} Qd7 {[%emt 0:09:45]} 23. Rfb1 {
[%emt 0:01:10]} Nd8 {[%emt 0:00:09]} 24. g3 {[%emt 0:04:29]} Ra3 {[%emt 0:00:
00]} 25. h4 {[%emt 0:02:14]} Rac3 {[%emt 0:00:41]} 26. h5 {[%emt 0:01:06]} Ne7
{[%emt 0:00:50]} 27. Bd3 {[%emt 0:00:20]} Qd6 {[%emt 0:03:35]} 28. R5b3 {
[%emt 0:10:47]} Rxb3 {[%emt 0:04:16]} 29. Rxb3 {[%emt 0:00:02]} e5 {[%emt 0:00:
00]} 30. dxe5 {[%emt 0:00:55]} Qxe5 {[%emt 0:00:01]} 31. h6 {[%emt 0:01:12]}
Qe6 {[%emt 0:00:58]} 32. Rb6 {[%emt 0:02:34]} Rc6 {[%emt 0:02:09]} 33. Rb4 {
[%emt 0:01:00]} Nf5 {[%emt 0:02:14]} 34. Bxf5 {[%emt 0:02:32]} Qxf5 {[%emt 0:
00:00]} 35. hxg7 {[%emt 0:00:55]} Kxg7 {[%emt 0:01:15]} 36. Qb2+ {[%emt 0:00:
00]} Kg8 {[%emt 0:01:31]} 37. Rf4 {[%emt 0:01:01]} Qd3 {[%emt 0:00:56]} 38. Qe5
{[%emt 0:01:03]} Ne6 {[%emt 0:01:49]} 39. Rg4+ {[%emt 0:00:25]} Kf8 {[%emt 0:
00:00]} 40. Qb8+ {[%emt 0:00:33]} Ke7 {[%emt 0:00:09]} 41. Qxb7+ {[%emt 0:00:
00]} Rc7 {[%emt 0:05:22]} 42. Qb4+ {[%emt 0:00:32]} Kd7 {[%emt 0:01:17]} 43.
Qa4+ {[%emt 0:00:28]} Ke7 {[%emt 0:00:21]} 44. Rg8 {[%emt 0:13:11]} Qc4 {
[%emt 0:16:00]} 45. Qe8+ {[%emt 0:02:02]} Kf6 {[%emt 0:00:21]} 46. Bb6 {
[%emt 0:04:56]} Rb7 {[%emt 0:01:57]} 47. Bd8+ {[%emt 0:06:01]} Ke5 {[%emt 0:00:
00]} 48. Kg2 {[%emt 0:04:37]} Qe4+ {[%emt 0:02:45]} 49. Kh2 {[%emt 0:00:02]}
Qc2 {[%emt 0:00:40]} 50. Kg2 {[%emt 0:00:38]} f5 {[%emt 0:01:16]} 51. Rf8 {
[%emt 0:00:49]} Qe4+ {[%emt 0:00:12]} 52. Kh2 {[%emt 0:00:17]} d4 {[%emt 0:00:
00]} 53. Rf6 {[%emt 0:00:45]} Kd5 {[%emt 0:00:31]} 54. Ba5 {[%emt 0:00:22]} Kd6
{[%emt 0:00:38]} 55. Qf8+ {[%emt 0:00:38]} Ke5 {[%emt 0:00:02]} 56. f4+ {
[%emt 0:00:20]} Kd5 {[%emt 0:00:10]} 57. Rxf5+ {[%emt 0:00:23]} Kc4 {[%emt 0:
00:00]} 58. Qc8+ {[%emt 0:00:34]} Kd3 {[%emt 0:00:19]} 59. Re5 {[%emt 0:00:34]}
Rb2+ {[%emt 0:00:42]} 60. Kh3 {[%emt 0:00:01]} Nxf4+ {[%emt 0:01:10]} 61. Kg4 {
[%emt 0:00:33]} h5+ {[%emt 0:00:16]} 62. Rxh5 {[%emt 0:00:54]} Nxh5+ {[%emt 0:
00:00]} 63. Kxh5 {[%emt 0:00:17]} Rb5+ {[%emt 0:00:31]} 0-1

[Event "44th Chess Olympiad Women 2022"]
[Site "Chennai"]
[Date "2022.07.31"]
[Round "3.20"]
[White "Cosma, Elena-Luminita"]
[Black "Abaeva, Aiana"]
[Result "1-0"]
[WhiteElo "2248"]
[BlackElo "1595"]
[Annotator "RC"]
[PlyCount "78"]
[EventDate "2022.??.??"]
[TimeControl "60"]

1. Nf3 {[%emt 0:00:03]} Nf6 {[%emt 0:00:20]} 2. c4 {[%emt 0:00:11]} e6 {
[%emt 0:00:38]} 3. g3 {[%emt 0:00:23]} d5 {[%emt 0:00:18]} 4. Bg2 {[%emt 0:00:
00]} Be7 {[%emt 0:00:48]} 5. O-O {[%emt 0:00:39]} O-O {[%emt 0:00:33]} 6. d4 {
[%emt 0:00:09]} c6 {[%emt 0:00:15]} 7. Qc2 {[%emt 0:01:03]} b6 {[%emt 0:03:35]}
8. Nbd2 {[%emt 0:15:36]} Bb7 {[%emt 0:01:33]} 9. e4 {[%emt 0:03:36]} Na6 {
[%emt 0:03:10]} 10. a3 {[%emt 0:07:08]} c5 {[%emt 0:13:19]} 11. cxd5 {[%emt 0:
00:00]} exd5 {[%emt 0:00:23]} 12. e5 {[%emt 0:01:03]} Nd7 {[%emt 0:00:29]} 13.
Re1 {[%emt 0:03:04]} Nc7 {[%emt 0:02:09]} 14. Nf1 {[%emt 0:05:55]} Ne6 {
[%emt 0:06:58]} 15. Ne3 {[%emt 0:01:57]} Re8 {[%emt 0:18:15]} 16. Qd1 {[%emt 0:
00:00]} Nb8 {[%emt 0:08:32]} 17. b3 {[%emt 0:10:48]} Nc6 {[%emt 0:05:16]} 18.
Bb2 {[%emt 0:01:57]} a5 {[%emt 0:01:35]} 19. dxc5 {[%emt 0:02:33]} d4 {[%emt 0:
00:00]} 20. Nxd4 {[%emt 0:07:11]} Nexd4 {[%emt 0:00:32]} 21. Bxd4 {[%emt 0:00:
00]} Nxd4 {[%emt 0:11:08]} 22. Bxb7 {[%emt 0:00:08]} Bxc5 {[%emt 0:00:54]} 23.
Nc4 {[%emt 0:10:50]} Ra7 {[%emt 0:05:53]} 24. Bg2 {[%emt 0:02:53]} Rd7 {
[%emt 0:00:33]} 25. Qb1 {[%emt 0:03:24]} b5 {[%emt 0:02:09]} 26. Nxa5 {[%emt 0:
00:00]} Qxa5 {[%emt 0:00:51]} 27. b4 {[%emt 0:00:03]} Qb6 {[%emt 0:00:17]} 28.
bxc5 {[%emt 0:00:06]} Qxc5 {[%emt 0:00:07]} 29. Qb4 {[%emt 0:03:00]} Rc7 {
[%emt 0:07:07]} 30. Qxc5 {[%emt 0:01:15]} Rxc5 {[%emt 0:00:06]} 31. Rab1 {
[%emt 0:01:46]} Rcxe5 {[%emt 0:00:55]} 32. Rxe5 {[%emt 0:00:19]} Rxe5 {[%emt 0:
00:00]} 33. Bf1 {[%emt 0:00:20]} g6 {[%emt 0:00:46]} 34. Rb4 {[%emt 0:00:36]}
Nc2 {[%emt 0:00:37]} 35. Rxb5 {[%emt 0:00:23]} Rxb5 {[%emt 0:07:00]} 36. Bxb5 {
[%emt 0:00:05]} f5 {[%emt 0:00:40]} 37. a4 {[%emt 0:00:21]} Nd4 {[%emt 0:00:20]
} 38. Bd7 {[%emt 0:01:34]} Kf8 {[%emt 0:00:28]} 39. a5 {[%emt 0:00:30]} Ke7 {
[%emt 0:00:00]} 1-0

[Event "44th Chess Olympiad Women 2022"]
[Site "Chennai"]
[Date "2022.07.31"]
[Round "3.20"]
[White "Samaganova, Alexandra"]
[Black "Sandu, Mihaela"]
[Result "1/2-1/2"]
[WhiteElo "1864"]
[BlackElo "2297"]
[Annotator "RC"]
[PlyCount "94"]
[EventDate "2022.??.??"]
[TimeControl "60"]

1. c4 {[%emt 0:00:10]} c5 {[%emt 0:00:13]} 2. Nf3 {[%emt 0:00:30]} Nc6 {
[%emt 0:00:14]} 3. Nc3 {[%emt 0:00:47]} Nf6 {[%emt 0:00:19]} 4. g3 {[%emt 0:00:
00]} g6 {[%emt 0:02:28]} 5. Bg2 {[%emt 0:00:51]} Bg7 {[%emt 0:00:00]} 6. O-O {
[%emt 0:00:55]} O-O {[%emt 0:00:12]} 7. d3 {[%emt 0:12:05]} d6 {[%emt 0:06:39]}
8. Ne1 {[%emt 0:04:16]} a6 {[%emt 0:07:39]} 9. a3 {[%emt 0:08:49]} Rb8 {
[%emt 0:11:12]} 10. Rb1 {[%emt 0:02:21]} Bg4 {[%emt 0:00:55]} 11. h3 {[%emt 0:
00:00]} Bd7 {[%emt 0:00:54]} 12. b4 {[%emt 0:00:23]} Qc8 {[%emt 0:01:53]} 13.
b5 {[%emt 0:09:43]} axb5 {[%emt 0:02:36]} 14. cxb5 {[%emt 0:00:17]} Na5 {
[%emt 0:12:40]} 15. Kh2 {[%emt 0:05:31]} b6 {[%emt 0:07:57]} 16. Bd2 {[%emt 0:
00:00]} c4 {[%emt 0:08:05]} 17. d4 {[%emt 0:09:29]} e5 {[%emt 0:02:48]} 18.
dxe5 {[%emt 0:04:30]} dxe5 {[%emt 0:02:00]} 19. Bg5 {[%emt 0:00:18]} Be6 {
[%emt 0:03:12]} 20. Nc2 {[%emt 0:08:38]} Rd8 {[%emt 0:05:25]} 21. Qe1 {[%emt 0:
00:00]} h6 {[%emt 0:00:14]} 22. Bxf6 {[%emt 0:01:58]} Bxf6 {[%emt 0:00:05]} 23.
Nb4 {[%emt 0:00:18]} Qd7 {[%emt 0:02:58]} 24. Ncd5 {[%emt 0:06:14]} Bxd5 {
[%emt 0:04:43]} 25. Nxd5 {[%emt 0:00:45]} Qd6 {[%emt 0:01:20]} 26. Qc3 {
[%emt 0:03:06]} Bg7 {[%emt 0:00:35]} 27. Rfd1 {[%emt 0:01:04]} Qc5 {[%emt 0:00:
00]} 28. Ne3 {[%emt 0:04:42]} Rd4 {[%emt 0:06:57]} 29. Qb4 {[%emt 0:01:25]} Bf8
{[%emt 0:00:36]} 30. Qxc5 {[%emt 0:00:33]} Bxc5 {[%emt 0:00:06]} 31. Ng4 {
[%emt 0:00:31]} Rbd8 {[%emt 0:03:45]} 32. Rdc1 {[%emt 0:00:23]} Bxa3 {[%emt 0:
00:00]} 33. Rc3 {[%emt 0:00:25]} Bd6 {[%emt 0:00:42]} 34. Nxh6+ {[%emt 0:00:14]
} Kg7 {[%emt 0:00:14]} 35. Ng4 {[%emt 0:00:10]} Rd2 {[%emt 0:00:16]} 36. Re1 {
[%emt 0:01:17]} f6 {[%emt 0:00:45]} 37. Ne3 {[%emt 0:00:28]} Bb4 {[%emt 0:00:
00]} 38. Rcc1 {[%emt 0:00:16]} Ra2 {[%emt 0:01:29]} 39. Red1 {[%emt 0:00:40]}
Rxd1 {[%emt 0:00:16]} 40. Rxd1 {[%emt 0:00:34]} Bd2 {[%emt 0:00:57]} 41. Nxc4 {
[%emt 0:11:18]} Nxc4 {[%emt 0:11:35]} 42. Bd5 {[%emt 0:00:17]} Rb2 {[%emt 0:00:
00]} 43. Bxc4 {[%emt 0:01:08]} e4 {[%emt 0:00:09]} 44. Ra1 {[%emt 0:09:26]} Ba5
{[%emt 0:01:18]} 45. Rd1 {[%emt 0:05:30]} Bd2 {[%emt 0:00:52]} 46. Ra1 {
[%emt 0:00:48]} Ba5 {[%emt 0:00:05]} 47. Rd1 {[%emt 0:00:09]} Bd2 {[%emt 0:00:
00]} 1/2-1/2

[Event "44th Chess Olympiad Women 2022"]
[Site "Chennai"]
[Date "2022.07.31"]
[Round "3.20"]
[White "Sovetbekova, Nurai"]
[Black "Lehaci, Miruna-Daria"]
[Result "0-1"]
[WhiteElo "1693"]
[BlackElo "2193"]
[Annotator "RC"]
[PlyCount "108"]
[EventDate "2022.??.??"]
[TimeControl "60"]

1. d4 {[%emt 0:34:16]} Nf6 {[%emt 0:00:06]} 2. c4 {[%emt 0:00:05]} e6 {[%emt 0:
00:00]} 3. g3 {[%emt 0:00:04]} c5 {[%emt 0:00:05]} 4. d5 {[%emt 0:00:03]} exd5
{[%emt 0:00:05]} 5. cxd5 {[%emt 0:00:03]} d6 {[%emt 0:00:04]} 6. Bg2 {[%emt 0:
00:00]} g6 {[%emt 0:00:05]} 7. Nc3 {[%emt 0:00:08]} Bg7 {[%emt 0:00:05]} 8. Nf3
{[%emt 0:00:04]} O-O {[%emt 0:00:05]} 9. O-O {[%emt 0:00:03]} Re8 {[%emt 0:00:
00]} 10. Bf4 {[%emt 0:00:21]} Na6 {[%emt 0:00:42]} 11. Nd2 {[%emt 0:10:35]} Nh5
{[%emt 0:01:07]} 12. Be3 {[%emt 0:01:21]} Nc7 {[%emt 0:00:27]} 13. a4 {[%emt 0:
00:00]} b6 {[%emt 0:03:19]} 14. Nde4 {[%emt 0:00:00]} f5 {[%emt 0:02:14]} 15.
Bg5 {[%emt 0:00:00]} Qd7 {[%emt 0:01:40]} 16. Nd2 {[%emt 0:00:00]} h6 {[%emt 0:
00:00]} 17. Be3 {[%emt 0:00:00]} Ba6 {[%emt 0:06:21]} 18. Bf3 {[%emt 0:05:17]}
Nf6 {[%emt 0:02:13]} 19. Qc2 {[%emt 0:04:42]} Re7 {[%emt 0:10:09]} 20. b3 {
[%emt 0:11:49]} Rae8 {[%emt 0:10:57]} 21. Nc4 {[%emt 0:03:04]} Ne4 {[%emt 0:00:
00]} 22. Bxe4 {[%emt 0:06:39]} fxe4 {[%emt 0:02:21]} 23. Rad1 {[%emt 0:01:12]}
g5 {[%emt 0:01:45]} 24. Bc1 {[%emt 0:07:06]} Bc8 {[%emt 0:03:11]} 25. f4 {
[%emt 0:04:39]} exf3 {[%emt 0:01:55]} 26. exf3 {[%emt 0:01:21]} Rf8 {[%emt 0:
00:00]} 27. Ne4 {[%emt 0:02:27]} Ne8 {[%emt 0:00:18]} 28. Bb2 {[%emt 0:02:16]}
Qd8 {[%emt 0:00:39]} 29. Bxg7 {[%emt 0:01:58]} Rxg7 {[%emt 0:00:07]} 30. Qc3 {
[%emt 0:01:42]} Bf5 {[%emt 0:04:13]} 31. Ne3 {[%emt 0:01:03]} Bh7 {[%emt 0:00:
00]} 32. Ng4 {[%emt 0:00:33]} h5 {[%emt 0:01:44]} 33. Ngf2 {[%emt 0:00:32]} Qd7
{[%emt 0:04:36]} 34. Qe3 {[%emt 0:00:30]} Qf5 {[%emt 0:01:55]} 35. Nd3 {
[%emt 0:00:33]} g4 {[%emt 0:06:03]} 36. Ne1 {[%emt 0:00:28]} Qe5 {[%emt 0:00:
00]} 37. Nd3 {[%emt 0:00:29]} Qxd5 {[%emt 0:01:57]} 38. Ndxc5 {[%emt 0:00:31]}
Qe5 {[%emt 0:03:18]} 39. Nd3 {[%emt 0:00:25]} Qe7 {[%emt 0:00:21]} 40. Rde1 {
[%emt 0:00:31]} d5 {[%emt 0:03:11]} 41. Nd2 {[%emt 0:30:30]} Qxe3+ {[%emt 0:00:
00]} 42. Rxe3 {[%emt 0:00:06]} d4 {[%emt 0:00:44]} 43. Rxe8 {[%emt 0:00:00]}
Rxe8 {[%emt 0:00:00]} 44. Nf4 {[%emt 0:00:00]} Rg5 {[%emt 0:00:00]} 45. fxg4 {
[%emt 0:00:00]} hxg4 {[%emt 0:00:00]} 46. Nc4 {[%emt 0:00:00]} Bc2 {[%emt 0:00:
00]} 47. Nd6 {[%emt 0:00:00]} Re7 {[%emt 0:00:00]} 48. Nc8 {[%emt 0:00:00]} Rd7
{[%emt 0:00:00]} 49. Ne6 {[%emt 0:00:00]} Rf5 {[%emt 0:00:00]} 50. Rxf5 {
[%emt 0:00:00]} Bxf5 {[%emt 0:00:00]} 51. Nxd4 {[%emt 0:00:00]} Rxd4 {[%emt 0:
00:00]} 52. Ne7+ {[%emt 0:00:00]} Kh7 {[%emt 0:00:00]} 53. Nxf5 {[%emt 0:00:00]
} Rb4 {[%emt 0:00:00]} 54. Ne3 {[%emt 0:00:00]} Kg6 {[%emt 0:00:00]} 0-1

[Event "44th Chess Olympiad Women 2022"]
[Site "Chennai"]
[Date "2022.07.31"]
[Round "3.21"]
[White "Ferrufino, Michelle"]
[Black "Janzelj, Lara"]
[Result "0-1"]
[WhiteElo "1811"]
[BlackElo "2215"]
[Annotator "RC"]
[PlyCount "102"]
[EventDate "2022.??.??"]
[TimeControl "60"]

1. e4 {[%emt 0:00:03]} e5 {[%emt 0:00:07]} 2. Nf3 {[%emt 0:00:37]} Nc6 {
[%emt 0:00:08]} 3. d4 {[%emt 0:00:21]} exd4 {[%emt 0:00:11]} 4. Bc4 {[%emt 0:
00:00]} Bc5 {[%emt 0:00:28]} 5. c3 {[%emt 0:00:41]} Nf6 {[%emt 0:01:25]} 6. e5
{[%emt 0:01:16]} d5 {[%emt 0:00:12]} 7. Bb5 {[%emt 0:00:42]} Ne4 {[%emt 0:00:
00]} 8. cxd4 {[%emt 0:00:39]} Bb6 {[%emt 0:00:10]} 9. O-O {[%emt 0:03:26]} O-O
{[%emt 0:00:33]} 10. Nc3 {[%emt 0:02:50]} Bg4 {[%emt 0:03:37]} 11. Be3 {
[%emt 0:01:33]} Ne7 {[%emt 0:07:35]} 12. Bd3 {[%emt 0:05:06]} f5 {[%emt 0:00:
00]} 13. exf6 {[%emt 0:12:10]} Nxf6 {[%emt 0:00:57]} 14. Be2 {[%emt 0:05:55]}
Nf5 {[%emt 0:04:58]} 15. Bg5 {[%emt 0:02:29]} c6 {[%emt 0:00:47]} 16. Ne5 {
[%emt 0:02:04]} Bxe2 {[%emt 0:00:59]} 17. Nxe2 {[%emt 0:00:16]} Qd6 {[%emt 0:
00:00]} 18. Nf3 {[%emt 0:05:51]} Rae8 {[%emt 0:12:22]} 19. Qd3 {[%emt 0:05:33]}
Ne4 {[%emt 0:06:01]} 20. Bf4 {[%emt 0:01:28]} Qe6 {[%emt 0:02:30]} 21. Be5 {
[%emt 0:04:38]} Nfd6 {[%emt 0:02:15]} 22. a4 {[%emt 0:04:25]} Nc4 {[%emt 0:00:
00]} 23. b3 {[%emt 0:14:56]} Nxe5 {[%emt 0:01:58]} 24. dxe5 {[%emt 0:00:56]}
Qg4 {[%emt 0:01:24]} 25. Nfd4 {[%emt 0:06:39]} Nc5 {[%emt 0:11:50]} 26. Qc2 {
[%emt 0:04:04]} Rxe5 {[%emt 0:01:50]} 27. a5 {[%emt 0:01:07]} Nxb3 {[%emt 0:00:
00]} 28. Qxb3 {[%emt 0:01:39]} Bxd4 {[%emt 0:00:27]} 29. Nxd4 {[%emt 0:02:22]}
Qxd4 {[%emt 0:00:04]} 30. Rad1 {[%emt 0:00:57]} Qc5 {[%emt 0:00:47]} 31. Qxb7 {
[%emt 0:00:38]} Re2 {[%emt 0:00:32]} 32. Kh1 {[%emt 0:02:28]} Rexf2 {[%emt 0:
00:00]} 33. Rxf2 {[%emt 0:02:02]} Qxf2 {[%emt 0:00:05]} 34. h3 {[%emt 0:00:16]}
Qc5 {[%emt 0:05:19]} 35. Re1 {[%emt 0:01:56]} Qxa5 {[%emt 0:01:26]} 36. Re7 {
[%emt 0:00:39]} Qc3 {[%emt 0:04:56]} 37. Qc7 {[%emt 0:01:35]} Qc1+ {[%emt 0:00:
00]} 38. Kh2 {[%emt 0:00:31]} Qf4+ {[%emt 0:00:05]} 39. Qxf4 {[%emt 0:00:14]}
Rxf4 {[%emt 0:00:03]} 40. Rxa7 {[%emt 0:00:19]} Rf7 {[%emt 0:00:52]} 41. Ra8+ {
[%emt 0:30:28]} Rf8 {[%emt 0:30:04]} 42. Ra7 {[%emt 0:00:17]} h5 {[%emt 0:00:
00]} 43. Rc7 {[%emt 0:00:35]} Rf6 {[%emt 0:00:04]} 44. Kg3 {[%emt 0:00:23]} Kh7
{[%emt 0:00:09]} 45. Kh4 {[%emt 0:01:08]} Kh6 {[%emt 0:00:57]} 46. g4 {[%emt 0:
00:00]} hxg4 {[%emt 0:01:01]} 47. hxg4 {[%emt 0:00:10]} Rd6 {[%emt 0:00:14]}
48. Rc8 {[%emt 0:01:11]} d4 {[%emt 0:00:17]} 49. Rh8+ {[%emt 0:00:28]} Kg6 {
[%emt 0:00:03]} 50. Kg3 {[%emt 0:00:21]} d3 {[%emt 0:00:09]} 51. Rh1 {[%emt 0:
00:00]} d2 {[%emt 0:00:09]} 0-1

[Event "44th Chess Olympiad Women 2022"]
[Site "Chennai"]
[Date "2022.07.31"]
[Round "3.21"]
[White "Granados Ortiz, Maria Jose"]
[Black "Rozman, Monika"]
[Result "0-1"]
[WhiteElo "1753"]
[BlackElo "2104"]
[Annotator "NA RC"]
[PlyCount "98"]
[EventDate "2022.??.??"]
[TimeControl "60"]

1. e4 {[%emt 0:00:03]} c5 {[%emt 0:00:05]} 2. Nf3 {[%emt 0:00:07]} d6 {[%emt 0:
00:00]} 3. d4 {[%emt 0:00:30]} cxd4 {[%emt 0:00:30]} 4. Nxd4 {[%emt 0:00:00]}
Nf6 {[%emt 0:00:00]} 5. Nc3 {[%emt 0:00:07]} a6 {[%emt 0:00:00]} 6. Bg5 {
[%emt 0:02:34]} e6 {[%emt 0:00:00]} 7. Qd2 {[%emt 0:00:43]} Be7 {[%emt 0:02:18]
} 8. O-O-O {[%emt 0:01:55]} b5 {[%emt 0:02:40]} 9. f3 {[%emt 0:01:02]} Bb7 {
[%emt 0:02:49]} 10. g4 {[%emt 0:00:49]} Nbd7 {[%emt 0:10:22]} 11. h4 {[%emt 0:
00:00]} Rc8 {[%emt 0:12:15]} 12. Be3 {[%emt 0:04:24]} Nc5 {[%emt 0:06:51]} 13.
h5 {[%emt 0:03:12]} b4 {[%emt 0:03:26]} 14. Nce2 {[%emt 0:01:10]} d5 {[%emt 0:
00:00]} 15. e5 {[%emt 0:22:19]} Nfd7 {[%emt 0:00:15]} 16. Bf4 {[%emt 0:00:26]}
Qb6 {[%emt 0:01:59]} 17. Kb1 {[%emt 0:01:14]} a5 {[%emt 0:00:36]} 18. Nc1 {
[%emt 0:01:02]} Ba6 {[%emt 0:00:41]} 19. Bxa6 {[%emt 0:03:32]} Nxa6 {[%emt 0:
00:00]} 20. g5 {[%emt 0:04:20]} Nf8 {[%emt 0:03:13]} 21. Rdg1 {[%emt 0:02:02]}
a4 {[%emt 0:02:07]} 22. g6 {[%emt 0:06:29]} hxg6 {[%emt 0:01:28]} 23. hxg6 {
[%emt 0:03:41]} Nxg6 {[%emt 0:01:48]} 24. Rxh8+ {[%emt 0:00:04]} Nxh8 {[%emt 0:
00:00]} 25. Rxg7 {[%emt 0:00:26]} Ng6 {[%emt 0:00:39]} 26. Rg8+ {[%emt 0:01:28]
} Kd7 {[%emt 0:00:38]} 27. Rxc8 {[%emt 0:00:15]} Kxc8 {[%emt 0:00:01]} 28. Bg3
{[%emt 0:07:00]} Bc5 {[%emt 0:02:30]} 29. Nce2 {[%emt 0:00:45]} Nc7 {[%emt 0:
00:00]} 30. c3 {[%emt 0:03:57]} Nb5 {[%emt 0:02:20]} 31. Nxb5 {[%emt 0:00:58]}
Qxb5 {[%emt 0:00:12]} 32. cxb4 {[%emt 0:00:07]} Bxb4 {[%emt 0:00:33]} 33. Qc2+
{[%emt 0:00:31]} Kb7 {[%emt 0:00:47]} 34. a3 {[%emt 0:01:06]} Bxa3 {[%emt 0:00:
00]} 35. Ka2 {[%emt 0:01:36]} Bc5 {[%emt 0:01:25]} 36. b3 {[%emt 0:05:35]}
axb3+ {[%emt 0:03:03]} 37. Qxb3 {[%emt 0:00:02]} Kc6 {[%emt 0:02:21]} 38. Qxb5+
{[%emt 0:00:17]} Kxb5 {[%emt 0:00:01]} 39. Kb3 {[%emt 0:00:12]} Bf8 {[%emt 0:
00:00]} 40. Nc1 {[%emt 0:00:47]} Bh6 {[%emt 0:02:20]} 41. Nd3 {[%emt 0:30:26]}
Nf8 {[%emt 0:31:10]} 42. Kc3 {[%emt 0:03:58]} Be3 {[%emt 0:01:11]} 43. Nf2 {
[%emt 0:02:54]} Nd7 {[%emt 0:00:00]} 44. Ng4 {[%emt 0:00:00]} d4+ {[%emt 0:00:
00]} 45. Kc2 {[%emt 0:00:00]} Kc4 {[%emt 0:00:00]} 46. f4 {[%emt 0:00:00]} d3+
{[%emt 0:00:00]} 47. Kd1 {[%emt 0:00:00]} Kd4 {[%emt 0:00:00]} 48. Nh6 {
[%emt 0:00:00]} Nxe5 {[%emt 0:00:00]} 49. Ng8 {[%emt 0:00:00]} Nc4 {[%emt 0:00:
00]} 0-1

[Event "44th Chess Olympiad Women 2022"]
[Site "Chennai"]
[Date "2022.07.31"]
[Round "3.21"]
[White "Unuk, Laura"]
[Black "Granados Diaz, Maria Esther"]
[Result "1-0"]
[WhiteElo "2340"]
[BlackElo "1888"]
[Annotator "RC"]
[PlyCount "49"]
[EventDate "2022.??.??"]
[TimeControl "60"]

1. Nf3 {[%emt 0:00:04]} Nf6 {[%emt 0:00:11]} 2. g3 {[%emt 0:00:28]} d5 {
[%emt 0:00:18]} 3. Bg2 {[%emt 0:00:22]} c5 {[%emt 0:00:09]} 4. O-O {[%emt 0:00:
00]} Nc6 {[%emt 0:00:05]} 5. d4 {[%emt 0:00:17]} e6 {[%emt 0:00:11]} 6. e3 {
[%emt 0:05:00]} Bd6 {[%emt 0:00:36]} 7. b3 {[%emt 0:00:20]} O-O {[%emt 0:03:07]
} 8. Bb2 {[%emt 0:01:43]} Ne4 {[%emt 0:03:33]} 9. Nbd2 {[%emt 0:02:46]} Nxd2 {
[%emt 0:08:18]} 10. Qxd2 {[%emt 0:03:01]} b6 {[%emt 0:05:41]} 11. Rfd1 {
[%emt 0:02:21]} Bb7 {[%emt 0:00:28]} 12. dxc5 {[%emt 0:14:28]} Bxc5 {[%emt 0:
00:00]} 13. Qc3 {[%emt 0:02:04]} f6 {[%emt 0:00:45]} 14. a3 {[%emt 0:01:02]}
Rc8 {[%emt 0:01:45]} 15. Qd2 {[%emt 0:09:59]} Qe7 {[%emt 0:03:11]} 16. b4 {
[%emt 0:00:49]} Bd6 {[%emt 0:00:10]} 17. c4 {[%emt 0:00:09]} Rfd8 {[%emt 0:00:
00]} 18. cxd5 {[%emt 0:01:20]} Bb8 {[%emt 0:00:11]} 19. e4 {[%emt 0:04:03]} Kh8
{[%emt 0:03:16]} 20. Rac1 {[%emt 0:07:30]} Qf7 {[%emt 0:03:28]} 21. dxe6 {
[%emt 0:14:16]} Rxd2 {[%emt 0:03:31]} 22. exf7 {[%emt 0:00:05]} Rxb2 {[%emt 0:
00:00]} 23. Nd4 {[%emt 0:01:17]} g6 {[%emt 0:11:30]} 24. b5 {[%emt 0:08:43]}
Kg7 {[%emt 0:01:36]} 25. bxc6 {[%emt 0:00:09]} 1-0